bitfinex-derivatives/quotes_BTCF0:USTF0_20250930
["timestamp","ask_amount","ask_price","bid_price","bid_amount"]
[1759262737714,0.91882785,114330.0,114320.0,0.51097497]
[1759262737914,3.51794785,114330.0,114320.0,0.51097497]
[1759262738723,3.51794785,114330.0,114320.0,0.48812497]
[1759262739320,3.51794785,114330.0,114320.0,0.07803763]
[1759262739321,3.87874785,114330.0,114320.0,0.07803763]
[1759262739523,0.1174742,114320.0,114310.0,0.04371113]
[1759262739720,1.29844888,114320.0,114310.0,0.04371113]
[1759262740020,1.69844888,114320.0,114310.0,0.04371113]
[1759262740216,1.33764888,114320.0,114310.0,0.04371113]
[1759262740422,3.48752154,114320.0,114310.0,0.04371113]
[1759262740616,0.4782742,114320.0,114310.0,0.04371113]
[1759262740821,3.48756154,114320.0,114310.0,0.45379847]
[1759262741725,3.48756154,114320.0,114310.0,0.04371113]
[1759262741921,3.89764888,114320.0,114310.0,0.04371113]
[1759262742121,3.89768888,114320.0,114310.0,0.04371113]
[1759262742316,3.89772888,114320.0,114310.0,0.04371113]
[1759262742922,3.48764154,114320.0,114310.0,0.04371113]
[1759262743121,3.47342392,114320.0,114310.0,0.04371113]
[1759262743825,0.87414392,114320.0,114310.0,0.04371113]
[1759262744123,3.47346392,114320.0,114310.0,0.04371113]
[1759262744314,3.47346392,114320.0,114310.0,0.47664847]
[1759262744514,3.47386392,114320.0,114310.0,0.47664847]
[1759262744916,3.47386392,114320.0,114310.0,0.45379847]
[1759262745219,3.47386392,114320.0,114310.0,0.04371113]
[1759262745220,4.28395126,114320.0,114310.0,0.04371113]
[1759262745425,1.68463126,114320.0,114310.0,0.04371113]
[1759262745727,4.28399126,114320.0,114310.0,0.04371113]
[1759262746219,4.28399126,114320.0,114310.0,0.06238403]
[1759262746627,3.46381658,114320.0,114310.0,0.06238403]
[1759262746818,4.28399126,114320.0,114310.0,0.06238403]
[1759262747019,4.28399126,114320.0,114310.0,0.00063232]
[1759262747218,4.28399126,114320.0,114280.0,0.14496554]
[1759262747219,0.1224171,114290.0,114280.0,0.14496554]
[1759262747522,2.7063071,114290.0,114280.0,1.23496909]
[1759262747825,0.1068271,114290.0,114280.0,1.24501949]
[1759262748122,0.9322271,114290.0,114280.0,1.73250429]
[1759262748324,0.9326271,114290.0,114280.0,1.73250429]
[1759262749621,0.1072271,114290.0,114280.0,1.73250429]
[1759262749825,0.9326271,114290.0,114280.0,1.73250429]
[1759262750127,0.9326271,114290.0,114280.0,1.80259872]
[1759262750825,0.9326271,114290.0,114280.0,1.71511392]
[1759262751320,0.1072271,114290.0,114280.0,1.71511392]
[1759262751528,0.9326271,114290.0,114280.0,1.71511392]
[1759262752023,0.9326271,114290.0,114280.0,1.82433896]
[1759262753025,0.91840805,114290.0,114280.0,1.82433896]
[1759262753628,0.91840805,114290.0,114280.0,1.79318091]
[1759262753926,0.91840805,114290.0,114280.0,0.57300623]
[1759262754125,0.07365805,114290.0,114280.0,1.88066571]
[1759262754331,0.89905805,114290.0,114280.0,1.88066571]
[1759262754520,0.07325805,114290.0,114280.0,1.8632513]
[1759262754721,0.89869805,114290.0,114280.0,1.8632513]
[1759262755016,0.89909805,114290.0,114280.0,1.8632513]
[1759262755221,0.07365805,114290.0,114280.0,1.8632513]
[1759262755426,0.89905805,114290.0,114280.0,1.8632513]
[1759262755628,0.0004,114290.0,114280.0,2.27333864]
[1759262755828,0.9133171,114290.0,114280.0,2.27333864]
[1759262756129,0.9129171,114290.0,114280.0,2.27333864]
[1759262756330,0.9133171,114290.0,114280.0,2.27333864]
[1759262756530,0.9133171,114290.0,114280.0,1.8632513]
[1759262756731,0.0004,114290.0,114280.0,1.8632513]
[1759262756924,0.82584,114290.0,114280.0,2.27333864]
[1759262757932,0.82584,114290.0,114280.0,1.8632513]
[1759262759235,0.8258,114290.0,114280.0,2.27333864]
[1759262759433,0.8258,114290.0,114280.0,2.19527165]
[1759262759733,0.8254,114290.0,114280.0,2.30449669]
[1759262760033,0.8258,114290.0,114280.0,2.30449669]
[1759262760333,0.8258,114290.0,114280.0,2.19527165]
[1759262761033,0.8258,114290.0,114280.0,1.78518431]
[1759262761937,0.8258,114290.0,114280.0,2.19527165]
[1759262763030,0.81158115,114290.0,114280.0,2.19527165]
[1759262764730,0.0004,114290.0,114280.0,2.19527165]
[1759262764927,0.82572,114290.0,114280.0,2.19527165]
[1759262765634,0.82572,114290.0,114280.0,0.96500963]
[1759262765834,0.82572,114290.0,114280.0,1.78518431]
[1759262766037,0.82572,114290.0,114280.0,1.8632502]
[1759262766428,0.82572,114290.0,114280.0,1.78518431]
[1759262766831,0.82564,114290.0,114280.0,2.19527165]
[1759262767133,0.0004,114290.0,114280.0,2.19527165]
[1759262767340,0.82004,114290.0,114280.0,2.30449669]
[1759262767535,0.0004,114290.0,114280.0,2.30449669]
[1759262767732,0.82564,114290.0,114280.0,2.30449669]
[1759262767929,0.0008,114310.0,114300.0,0.1002295]
[1759262768140,0.82524,114310.0,114300.0,1.30404418]
[1759262768437,0.82564,114310.0,114300.0,1.30404418]
[1759262768637,0.8256,114310.0,114300.0,1.38212378]
[1759262768836,0.0004,114310.0,114300.0,1.74292378]
[1759262769133,0.8252,114310.0,114300.0,2.15301112]
[1759262769337,0.8256,114310.0,114300.0,1.74292378]
[1759262771334,0.8256,114310.0,114300.0,0.9227491]
[1759262771537,0.8256,114310.0,114300.0,1.74292378]
[1759262772434,0.0004,114310.0,114300.0,2.15301112]
[1759262772638,1.7742,114330.0,114320.0,0.1230542]
[1759262772943,2.51016,114330.0,114320.0,0.95643361]
[1759262773141,2.50936,114330.0,114320.0,1.77660829]
[1759262773342,2.5972065,114330.0,114320.0,1.36652095]
[1759262773543,2.50976,114330.0,114320.0,1.36652095]
[1759262774035,2.50976,114330.0,114320.0,1.72732095]
[1759262775043,2.50936,114330.0,114320.0,1.72732095]
[1759262775242,2.50976,114330.0,114320.0,1.66482888]
[1759262775941,0.8254,114330.0,114320.0,1.66482888]
[1759262776739,0.0004,114330.0,114320.0,1.7354654]
[1759262777133,0.82536,114330.0,114320.0,1.7354654]
[1759262777939,0.82536,114330.0,114320.0,0.91529072]
[1759262778148,0.9327965,114330.0,114320.0,1.7979251]
[1759262778643,0.91858112,114330.0,114320.0,1.84469044]
[1759262779745,0.83113462,114330.0,114320.0,1.84469044]
[1759262780245,0.83113462,114330.0,114320.0,1.7354654]
[1759262780843,0.83113462,114330.0,114320.0,1.84469044]
[1759262780844,0.81114462,114330.0,114320.0,1.84469044]
[1759262782345,0.81114462,114330.0,114320.0,1.32541568]
[1759262782844,0.81114462,114330.0,114320.0,1.43464072]
[1759262784338,0.51835396,114340.0,114330.0,0.1221865]
[1759262784539,1.34307396,114340.0,114330.0,0.56087679]
[1759262784940,1.74307396,114340.0,114330.0,0.47343029]
[1759262785135,1.74792396,114340.0,114330.0,0.43869029]
[1759262785345,0.91835396,114340.0,114330.0,0.54789679]
[1759262785544,1.74303396,114340.0,114330.0,0.4829865]
[1759262786035,3.51687396,114340.0,114330.0,0.4829865]
[1759262787151,1.65555496,114340.0,114330.0,0.4829865]
[1759262787348,1.74299386,114340.0,114330.0,0.4829865]
[1759262787749,3.51679386,114340.0,114330.0,0.4829865]
[1759262788345,3.51675386,114340.0,114330.0,0.4829865]
[1759262789045,3.51675386,114340.0,114330.0,0.01298]
[1759262789250,0.1074365,114330.0,114320.0,0.47587427]
[1759262789448,0.91347065,114330.0,114320.0,0.14852681]
[1759262789850,1.31347065,114330.0,114320.0,0.07789029]
[1759262790051,0.1074442,114320.0,114310.0,0.56066549]
[1759262790245,1.34212916,114320.0,114310.0,0.56066549]
[1759262790642,1.34212916,114320.0,114310.0,0.19986549]
[1759262790838,1.74212916,114320.0,114310.0,0.11241029]
[1759262791446,1.74212916,114320.0,114310.0,0.09065029]
[1759262791650,2.11056916,114320.0,114310.0,0.07789029]
[1759262791839,2.11056916,114320.0,114300.0,0.19987533]
[1759262792148,1.27837676,114310.0,114300.0,0.07789029]
[1759262792349,3.87673676,114310.0,114300.0,0.07789029]
[1759262792651,3.87673676,114310.0,114300.0,0.09087029]
[1759262793450,1.27837676,114310.0,114300.0,0.09087029]
[1759262793656,3.87673676,114310.0,114300.0,0.09087029]
[1759262794154,0.1074595,114300.0,114290.0,0.07789029]
[1759262794345,0.87838446,114300.0,114290.0,0.07789029]
[1759262794850,1.28323446,114300.0,114290.0,0.07789029]
[1759262795051,1.69335942,114300.0,114290.0,0.07789029]
[1759262795249,4.29175942,114300.0,114290.0,0.07789029]
[1759262795455,0.0874772,114290.0,114280.0,0.10922504]
[1759262795752,0.85840216,114290.0,114280.0,0.12220504]
[1759262795954,1.25840216,114290.0,114280.0,0.01298]
[1759262796457,3.85684216,114290.0,114280.0,0.01298]
[1759262796751,3.85688216,114290.0,114280.0,0.01298]
[1759262796955,0.8482772,114290.0,114280.0,0.01298]
[1759262797148,2.08288216,114290.0,114280.0,0.01298]
[1759262797358,1.25840216,114290.0,114280.0,0.01298]
[1759262797560,3.85696216,114290.0,114280.0,0.01298]
[1759262797748,3.0469172,114290.0,114280.0,0.03474]
[1759262798052,3.45744216,114290.0,114280.0,0.14396504]
[1759262798255,0.85880216,114290.0,114280.0,0.14396504]
[1759262798551,3.45704216,114290.0,114280.0,0.14396504]
[1759262798857,3.45744216,114290.0,114280.0,0.03474]
[1759262799056,0.4486772,114290.0,114280.0,0.1222248]
[1759262799260,1.2731572,114290.0,114280.0,0.1222248]
[1759262799453,1.25893709,114290.0,114280.0,0.1222248]
[1759262800352,1.66906205,114290.0,114280.0,0.03474]
[1759262800754,1.66906205,114290.0,114280.0,0.1222248]
[1759262800946,0.84458205,114290.0,114280.0,0.1222248]
[1759262801144,3.44334205,114290.0,114280.0,0.1222248]
[1759262801643,0.48378205,114290.0,114280.0,0.23144984]
[1759262801848,1.30822205,114290.0,114280.0,0.23144984]
[1759262803257,1.30822205,114290.0,114280.0,0.14396504]
[1759262803452,1.66902205,114290.0,114280.0,0.14396504]
[1759262803645,1.66902205,114290.0,114280.0,0.03474]
[1759262804557,1.66902205,114290.0,114280.0,0.1222248]
[1759262805055,1.30822205,114290.0,114280.0,0.1222248]
[1759262805258,1.30818205,114290.0,114280.0,0.1222248]
[1759262805452,0.07365709,114290.0,114280.0,0.89314976]
[1759262805653,0.89805709,114290.0,114280.0,0.89314976]
[1759262806053,1.16365709,114290.0,114280.0,1.0023748]
[1759262806450,0.33925709,114290.0,114280.0,1.0023748]
[1759262806647,0.24609291,114290.0,114280.0,1.4023748]
[1759262806858,1.07045291,114290.0,114280.0,1.29314976]
[1759262807059,1.07045291,114290.0,114280.0,1.40233066]
[1759262807358,0.12797053,114290.0,114280.0,1.29314976]
[1759262807657,0.17113773,114310.0,114300.0,0.1227595]
[1759262807853,0.90799053,114310.0,114300.0,0.61085668]
[1759262808057,0.90719053,114310.0,114300.0,0.97165668]
[1759262808359,0.90759053,114310.0,114300.0,0.4835595]
[1759262809047,0.99505233,114310.0,114300.0,0.4835595]
[1759262809453,0.99505233,114310.0,114300.0,0.59272061]
[1759262809960,0.99505233,114310.0,114300.0,1.00284557]
[1759262812051,0.99505233,114310.0,114300.0,0.59272061]
[1759262812252,0.99493233,114310.0,114300.0,0.59272061]
[1759262812448,0.99493233,114310.0,114300.0,1.00284557]
[1759262815254,0.0004,114310.0,114300.0,1.00284557]
[1759262815455,0.82448,114310.0,114300.0,1.40284557]
[1759262815655,0.82408,114310.0,114300.0,1.40284557]
[1759262815851,0.82448,114310.0,114300.0,1.40284557]
[1759262816261,0.82448,114310.0,114300.0,1.4739772]
[1759262816460,0.82448,114310.0,114300.0,1.06385224]
[1759262816659,0.82448,114310.0,114300.0,1.4739772]
[1759262817171,0.0004,114310.0,114300.0,1.4739772]
[1759262817373,0.58948,114310.0,114300.0,1.4739772]
[1759262818258,0.58948,114310.0,114300.0,1.36481609]
[1759262819170,0.56957641,114310.0,114300.0,1.36481609]
[1759262819465,0.65703821,114310.0,114300.0,1.36481609]
[1759262819662,0.65703821,114310.0,114300.0,0.95469113]
[1759262819862,1.06716317,114310.0,114300.0,0.21579436]
[1759262820066,1.42796317,114310.0,114300.0,0.21579436]
[1759262820365,1.42796317,114310.0,114300.0,0.10642163]
[1759262821062,1.41783821,114310.0,114300.0,0.03529]
[1759262821269,1.82796317,114310.0,114300.0,0.09086714]
[1759262822068,1.25838676,114310.0,114300.0,0.11343714]
[1759262822268,2.08218676,114310.0,114300.0,0.11343714]
[1759262822769,2.08218676,114310.0,114300.0,0.09086714]
[1759262826772,2.49231172,114310.0,114300.0,0.10937273]
[1759262827067,1.25838676,114310.0,114300.0,0.09089497]
[1759262827274,3.85630676,114310.0,114300.0,0.09089497]
[1759262827776,3.85630676,114310.0,114300.0,0.07817497]
[1759262828073,1.25838676,114310.0,114300.0,0.07817497]
[1759262828272,3.85626676,114310.0,114300.0,0.09089497]
[1759262828875,1.25838676,114310.0,114300.0,0.09089497]
[1759262829273,3.85626676,114310.0,114300.0,0.09089497]
[1759262830676,3.85634676,114310.0,114300.0,0.09089497]
[1759262831077,0.0874695,114300.0,114290.0,0.05605497]
[1759262831266,1.66851942,114300.0,114290.0,7e-08]
[1759262831472,1.65429841,114300.0,114290.0,7e-08]
[1759262831674,4.25217841,114300.0,114290.0,7e-08]
[1759262832472,4.32056763,114300.0,114290.0,7e-08]
[1759262832772,0.0874771,114290.0,114280.0,0.0447826]
[1759262832974,0.85840206,114290.0,114280.0,0.0083828]
[1759262833172,0.0874848,114280.0,114270.0,0.04581142]
[1759262833375,1.68188976,114280.0,114270.0,0.04581142]
[1759262833678,1.68188976,114280.0,114270.0,0.06838142]
[1759262834174,0.85840976,114280.0,114270.0,0.06838142]
[1759262834379,3.45640976,114280.0,114270.0,0.06838142]
[1759262834680,0.85840976,114280.0,114270.0,0.06838142]
[1759262834981,3.45636976,114280.0,114270.0,0.06838142]
[1759262836273,3.45640976,114280.0,114270.0,0.06838142]
[1759262839080,0.85840976,114280.0,114270.0,0.06838142]
[1759262839283,3.45636976,114280.0,114270.0,0.06838142]
[1759262839676,0.85840976,114280.0,114270.0,0.06838142]
[1759262839873,3.45636976,114280.0,114270.0,0.06838142]
[1759262840073,0.85840976,114280.0,114270.0,0.06838142]
[1759262840273,3.45632976,114280.0,114270.0,0.06838142]
[1759262840581,0.85840976,114280.0,114270.0,0.06838142]
[1759262840881,3.45632976,114280.0,114270.0,0.06838142]
[1759262842281,3.86745718,114280.0,114270.0,0.06838142]
[1759262843181,0.4482848,114280.0,114270.0,0.06838142]
[1759262843383,1.26953718,114280.0,114270.0,0.06838142]
[1759262843585,3.86741718,114280.0,114270.0,0.06838142]
[1759262844375,1.26953718,114280.0,114270.0,0.06838142]
[1759262844576,1.32171099,114280.0,114270.0,0.87900761]
[1759262845477,0.0878848,114280.0,114270.0,0.87900761]
[1759262845677,1.32171099,114280.0,114270.0,0.87900761]
[1759262846189,1.32171099,114280.0,114270.0,0.46838142]
[1759262846479,0.0878848,114280.0,114270.0,0.87900761]
[1759262846684,1.32167099,114280.0,114270.0,0.87900761]
[1759262847080,1.32167099,114280.0,114270.0,0.46838142]
[1759262847384,1.68247099,114280.0,114270.0,0.87900761]
[1759262852980,1.68247099,114280.0,114270.0,0.46838142]
[1759262853181,1.68247099,114280.0,114270.0,0.87900761]
[1759262854179,2.09309718,114280.0,114270.0,0.87900761]
[1759262854380,1.2718448,114280.0,114270.0,0.87900761]
[1759262854583,2.09309718,114280.0,114270.0,0.87900761]
[1759262857188,2.09309718,114280.0,114270.0,0.46838142]
[1759262857387,1.2718448,114280.0,114270.0,0.46838142]
[1759262857589,2.09309718,114280.0,114270.0,0.46838142]
[1759262858587,1.2718448,114280.0,114270.0,0.46838142]
[1759262858791,0.0878848,114280.0,114270.0,1.32730011]
[1759262859186,0.9101648,114280.0,114270.0,0.82918142]
[1759262859391,0.89634278,114280.0,114270.0,1.23980761]
[1759262859586,1.30656897,114280.0,114270.0,0.47900761]
[1759262859788,1.30696897,114280.0,114270.0,0.47900761]
[1759262860783,2.07839516,114280.0,114270.0,0.06838142]
[1759262861384,2.07839516,114280.0,114270.0,0.47900761]
[1759262861780,2.07839516,114280.0,114270.0,0.06838142]
[1759262862193,1.25714278,114280.0,114270.0,0.06838142]
[1759262862484,2.07839516,114280.0,114270.0,0.06838142]
[1759262862896,2.07839516,114280.0,114270.0,0.47900761]
[1759262863399,1.25714278,114280.0,114270.0,0.47900761]
[1759262863689,1.30696897,114280.0,114270.0,0.47900761]
[1759262864595,1.30696897,114280.0,114270.0,0.06838142]
[1759262864795,1.71759516,114280.0,114270.0,0.06838142]
[1759262865898,2.07839516,114280.0,114270.0,0.06838142]
[1759262866094,2.07839516,114280.0,114270.0,0.14640538]
[1759262866696,2.47839516,114280.0,114270.0,0.14640538]
[1759262866992,2.47839516,114280.0,114270.0,0.06838142]
[1759262867196,2.47839516,114280.0,114270.0,0.04581142]
[1759262867400,1.65571516,114280.0,114270.0,0.04581142]
[1759262867599,4.25299516,114280.0,114270.0,0.04581142]
[1759262867901,4.25299516,114280.0,114270.0,0.06681142]
[1759262868897,4.25303516,114280.0,114270.0,0.06681142]
[1759262869500,1.65571516,114280.0,114270.0,0.06681142]
[1759262869798,4.25299516,114280.0,114270.0,0.06681142]
[1759262871099,4.66362135,114280.0,114270.0,0.04581142]
[1759262871301,4.25299516,114280.0,114270.0,0.03283142]
[1759262871599,1.65571516,114280.0,114270.0,0.03283142]
[1759262871794,4.25299516,114280.0,114270.0,0.03283142]
[1759262871996,4.66362135,114280.0,114270.0,2e-08]
[1759262873197,0.0875001,114260.0,114250.0,0.09074396]
[1759262873387,2.43868687,114260.0,114250.0,0.09074396]
[1759262874094,4.21344687,114260.0,114250.0,0.09074396]
[1759262874901,4.21348687,114260.0,114250.0,0.09074396]
[1759262875299,1.61612687,114260.0,114250.0,0.09074396]
[1759262875599,4.21344687,114260.0,114250.0,0.11174396]
[1759262875799,1.61739449,114260.0,114250.0,0.11174396]
[1759262876001,4.21352687,114260.0,114250.0,0.03372]
[1759262877000,4.21356687,114260.0,114250.0,0.01272]
[1759262878404,1.61612687,114260.0,114250.0,0.01272]
[1759262878598,4.21356687,114260.0,114250.0,0.01272]
[1759262878796,4.62419306,114260.0,114250.0,0.01272]
[1759262878996,0.0875154,114240.0,114230.0,0.01263]
[1759262879201,3.86700778,114240.0,114230.0,0.01263]
[1759262879395,3.86700778,114240.0,114230.0,0.03363]
[1759262879792,3.04452778,114240.0,114230.0,0.03363]
[1759262879994,3.86708778,114240.0,114230.0,0.03363]
[1759262880198,1.26956778,114240.0,114230.0,0.03363]
[1759262880396,3.86704778,114240.0,114230.0,0.03363]
[1759262880803,1.26956778,114240.0,114230.0,0.03363]
[1759262881101,3.86704778,114240.0,114230.0,0.03363]
[1759262881301,3.86704778,114240.0,114230.0,0.01263]
[1759262881798,3.86716778,114240.0,114230.0,0.01263]
[1759262882894,1.26956778,114240.0,114230.0,0.01263]
[1759262883094,3.86716778,114240.0,114230.0,0.01263]
[1759262884306,1.26956778,114240.0,114230.0,0.01263]
[1759262884499,3.86720778,114240.0,114230.0,0.01263]
[1759262885398,1.26956778,114240.0,114230.0,0.01263]
[1759262885701,3.86724778,114240.0,114230.0,0.01263]
[1759262886201,3.95011831,114240.0,114230.0,0.01263]
[1759262886401,3.12886593,114240.0,114230.0,0.01263]
[1759262886604,3.95011831,114240.0,114230.0,0.01263]
[1759262887398,3.95015831,114240.0,114230.0,0.01263]
[1759262887596,0.53118593,114240.0,114230.0,0.03363]
[1759262887904,1.35243831,114240.0,114230.0,0.03363]
[1759262888106,3.95019831,114240.0,114230.0,0.03363]
[1759262890001,3.95019831,114240.0,114230.0,0.01263]
[1759262892309,1.35243831,114240.0,114230.0,0.03363]
[1759262892606,3.95023831,114240.0,114230.0,0.03363]
[1759262893001,3.95023831,114240.0,114230.0,0.01263]
[1759262893502,0.0875231,114230.0,114220.0,0.01271852]
[1759262893703,1.26967138,114230.0,114220.0,0.01271852]
[1759262895213,3.86743138,114230.0,114220.0,8.852e-05]
[1759262895600,3.45680519,114230.0,114220.0,8.852e-05]
[1759262895800,3.86743138,114230.0,114220.0,0.01271852]
[1759262896402,1.26967138,114230.0,114220.0,0.01271852]
[1759262896605,3.86739138,114230.0,114220.0,0.01271852]
[1759262896802,1.26967138,114230.0,114220.0,0.01271852]
[1759262897008,3.45676519,114230.0,114220.0,0.01271852]
[1759262898202,3.53963572,114230.0,114220.0,0.01271852]
[1759262898497,0.94191572,114230.0,114220.0,0.01271852]
[1759262898709,3.53971572,114230.0,114220.0,0.01271852]
[1759262901406,3.95034191,114230.0,114220.0,0.01271852]
[1759262901608,3.86747138,114230.0,114220.0,8.852e-05]
[1759262901810,4.26747138,114230.0,114220.0,8.852e-05]
[1759262902010,0.0875308,114220.0,114210.0,0.01263]
[1759262902211,0.0875384,114210.0,114200.0,0.03381]
[1759262902406,0.84525131,114210.0,114200.0,0.03381]
[1759262902603,3.44301131,114210.0,114200.0,0.01263]
[1759262902808,0.0875461,114200.0,114190.0,0.12129456]
[1759262903013,0.49869011,114200.0,114190.0,0.12129456]
[1759262903313,3.09645011,114200.0,114190.0,0.12129456]
[1759262904007,0.49869011,114200.0,114190.0,0.12129456]
[1759262904209,3.09645011,114200.0,114190.0,0.12129456]
[1759262904415,0.49869011,114200.0,114190.0,0.12129456]
[1759262904613,2.6853461,114200.0,114190.0,0.12129456]
[1759262905111,3.45729011,114200.0,114190.0,0.52129456]
[1759262905312,3.45729011,114200.0,114190.0,0.11183396]
[1759262905814,3.45729011,114200.0,114190.0,0.03381]
[1759262906809,0.85949011,114200.0,114190.0,0.03381]
[1759262907015,3.0461461,114200.0,114190.0,0.04322174]
[1759262907312,2.6853861,114200.0,114190.0,0.61994351]
[1759262907612,0.0875461,114200.0,114190.0,0.54191955]
[1759262907817,0.0875461,114200.0,114190.0,1.30271955]
[1759262908025,0.9097461,114200.0,114190.0,1.30271955]
[1759262908214,0.0879461,114200.0,114190.0,1.30271955]
[1759262908516,0.9101061,114200.0,114190.0,1.30271955]
[1759262909121,0.0879461,114200.0,114190.0,1.30271955]
[1759262909617,0.9101061,114200.0,114190.0,1.30271955]
[1759262909818,0.0879461,114200.0,114190.0,1.30271955]
[1759262910018,0.9101061,114200.0,114190.0,1.30271955]
[1759262910519,0.0879461,114200.0,114190.0,1.30271955]
[1759262910818,0.9101061,114200.0,114190.0,1.30271955]
[1759262911123,0.0879461,114200.0,114190.0,1.30271955]
[1759262911420,0.9100661,114200.0,114190.0,1.30271955]
[1759262912823,0.89583526,114200.0,114190.0,1.30271955]
[1759262913023,0.89583526,114200.0,114190.0,1.38074351]
[1759262916620,0.89583526,114200.0,114190.0,1.30271955]
[1759262918022,0.89583526,114200.0,114190.0,1.41197125]
[1759262919116,0.0004,114200.0,114190.0,1.41197125]
[1759262919321,0.9098261,114200.0,114190.0,1.41197125]
[1759262919511,0.9098261,114200.0,114190.0,1.01197125]
[1759262919713,0.9094261,114200.0,114190.0,1.01197125]
[1759262920421,0.9098261,114200.0,114190.0,1.01197125]
[1759262922821,0.89559552,114200.0,114190.0,1.01197125]
[1759262923025,0.0879461,114200.0,114190.0,0.90271955]
[1759262923322,0.9096661,114200.0,114190.0,0.90271955]
[1759262925422,0.9096661,114200.0,114190.0,0.98109179]
[1759262925824,0.9096661,114200.0,114190.0,0.56994778]
[1759262926016,0.9096661,114200.0,114190.0,0.98109179]
[1759262926326,0.0879461,114200.0,114190.0,0.98109179]
[1759262926523,0.9095461,114200.0,114190.0,0.98109179]
[1759262927126,0.822,114200.0,114190.0,0.98109179]
[1759262927422,0.822,114200.0,114190.0,0.90271955]
[1759262927623,0.0004,114200.0,114190.0,0.90271955]
[1759262927827,0.82196,114200.0,114190.0,0.90271955]
[1759262928021,0.0004,114200.0,114190.0,0.90271955]
[1759262928222,0.9094661,114200.0,114190.0,0.90271955]
[1759262928620,0.0879461,114200.0,114190.0,0.90271955]
[1759262928818,0.9094261,114200.0,114190.0,0.90271955]
[1759262929225,0.9094261,114200.0,114190.0,0.81516575]
[1759262929524,0.9094261,114200.0,114190.0,0.90271955]
[1759262930223,0.9094261,114200.0,114190.0,1.01197125]
[1759262932132,0.9094261,114200.0,114190.0,0.60082724]
[1759262932333,0.9094261,114200.0,114190.0,1.01197125]
[1759262932526,0.9094261,114200.0,114190.0,0.90271955]
[1759262932830,0.89519543,114200.0,114190.0,0.04322174]
[1759262933032,0.89519543,114200.0,114190.0,0.53277251]
[1759262933332,0.89519543,114200.0,114190.0,0.45436575]
[1759262935227,0.89519543,114200.0,114190.0,0.04322174]
[1759262935532,0.46493542,114200.0,114190.0,0.15247344]
[1759262935829,2.65075141,114200.0,114190.0,0.92441745]
[1759262936632,0.87499141,114200.0,114190.0,0.51327344]
[1759262936833,0.87499141,114200.0,114190.0,0.92441745]
[1759262937225,0.05379141,114200.0,114190.0,0.92441745]
[1759262937429,0.87495141,114200.0,114190.0,0.92441745]
[1759262940235,0.87491141,114200.0,114190.0,0.92441745]
[1759262940835,0.05379141,114200.0,114190.0,0.92441745]
[1759262941330,0.87483141,114200.0,114190.0,0.92441745]
[1759262941532,0.87483141,114200.0,114190.0,0.51327344]
[1759262941733,0.05379141,114200.0,114190.0,1.01197125]
[1759262942033,0.87479141,114200.0,114190.0,0.60082724]
[1759262942333,0.87479141,114200.0,114190.0,1.01197125]
[1759262942636,0.87479141,114200.0,114190.0,0.51327344]
[1759262942837,0.86056003,114200.0,114190.0,0.92441745]
[1759262944437,0.86056003,114200.0,114190.0,1.01197125]
[1759262945643,0.03956003,114200.0,114190.0,1.01197125]
[1759262945844,2.63628003,114200.0,114190.0,1.01197125]
[1759262948147,0.03956003,114200.0,114190.0,1.01197125]
[1759262948347,0.86028003,114200.0,114190.0,0.90271955]
[1759262950148,0.03956003,114200.0,114190.0,0.90271955]
[1759262950349,0.86020003,114200.0,114190.0,0.90271955]
[1759262950649,0.86020003,114200.0,114190.0,0.81516575]
[1759262951541,0.86016003,114200.0,114190.0,0.83319145]
[1759262951743,0.86056003,114200.0,114190.0,0.83319145]
[1759262952847,0.821,114200.0,114190.0,0.83319145]
[1759262953442,0.82096,114200.0,114190.0,0.83319145]
[1759262954043,0.9084661,114200.0,114190.0,0.99916287]
[1759262954348,0.9084661,114200.0,114190.0,0.92074525]
[1759262955845,0.9084661,114200.0,114190.0,0.48243974]
[1759262956042,0.9084661,114200.0,114190.0,0.89358375]
[1759262956544,2.08041011,114200.0,114190.0,0.112228]
[1759262956743,2.08051619,114200.0,114190.0,0.091048]
[1759262956948,0.0875537,114190.0,114180.0,0.29503879]
[1759262957144,0.85949771,114190.0,114180.0,0.10736909]
[1759262957542,1.25949771,114190.0,114180.0,0.09328008]
[1759262957743,1.25949771,114190.0,114180.0,0.08010686]
[1759262959246,3.85569771,114190.0,114180.0,0.11573686]
[1759262959445,3.85569771,114190.0,114180.0,0.01793506]
[1759262959750,0.0875614,114180.0,114170.0,0.20754341]
[1759262959950,0.85950541,114180.0,114170.0,0.09829171]
[1759262960346,0.85950541,114180.0,114170.0,0.03557]
[1759262960743,3.45574541,114180.0,114170.0,0.03557]
[1759262960939,2.6838014,114180.0,114170.0,0.44671401]
[1759262961249,2.6838014,114180.0,114170.0,0.91676571]
[1759262961553,2.6841614,114180.0,114170.0,0.91676571]
[1759262961847,0.0879614,114180.0,114170.0,1.00433481]
[1759262962149,2.6842014,114180.0,114170.0,0.1448217]
[1759262962348,2.6842014,114180.0,114170.0,0.55596571]
[1759262962550,2.6842014,114180.0,114170.0,0.91676571]
[1759262963051,2.66996771,114180.0,114170.0,0.91676571]
[1759262963350,2.67000771,114180.0,114170.0,0.91676571]
[1759262964048,0.07372771,114180.0,114170.0,0.91676571]
[1759262964251,3.08122509,114180.0,114170.0,0.91687908]
[1759262967148,3.08122509,114180.0,114170.0,0.80762738]
[1759262967655,2.66996771,114180.0,114170.0,0.80762738]
[1759262967955,3.08122509,114180.0,114170.0,0.80762738]
[1759262968756,0.48498509,114180.0,114170.0,0.89519648]
[1759262968956,3.08110509,114180.0,114170.0,0.89519648]
[1759262969656,0.48498509,114180.0,114170.0,0.89519648]
[1759262970359,3.08106509,114180.0,114170.0,1.00444818]
[1759262971162,3.08106509,114180.0,114170.0,0.97355315]
[1759262971658,0.48498509,114180.0,114170.0,0.97355315]
[1759262971859,2.66972771,114180.0,114170.0,1.38481053]
[1759262972059,2.66932771,114180.0,114170.0,1.38481053]
[1759262972258,0.07372771,114180.0,114170.0,1.38481053]
[1759262972455,0.82028,114180.0,114170.0,0.56229577]
[1759262972759,0.82028,114180.0,114170.0,1.38481053]
[1759262972960,0.0879614,114180.0,114170.0,1.38481053]
[1759262973258,0.89356734,114180.0,114170.0,1.38481053]
[1759262973458,0.449159,114190.0,114180.0,0.1231914]
[1759262973655,1.77612,114190.0,114180.0,0.94570616]
[1759262973862,0.0004,114190.0,114180.0,1.02406283]
[1759262974058,0.9073538,114190.0,114180.0,1.02406283]
[1759262974258,0.9077538,114190.0,114180.0,1.38486283]
[1759262974752,0.8202,114190.0,114180.0,1.38486283]
[1759262977758,0.82004,114190.0,114180.0,1.38486283]
[1759262979362,0.82004,114190.0,114180.0,1.30650616]
[1759262979963,0.0004,114190.0,114180.0,2.22701524]
[1759262980159,0.81911375,114190.0,114180.0,2.22701524]
[1759262980466,0.81951375,114190.0,114180.0,1.30650616]
[1759262980665,0.81951375,114190.0,114180.0,1.71776354]
[1759262981460,0.0004,114190.0,114180.0,2.22742421]
[1759262981669,0.00010608,114200.0,114190.0,0.1231838]